bitfinex/quotes_BTCUSD_20251116
["timestamp","ask_amount","ask_price","bid_price","bid_amount"]
[1763303582055,0.0002463,95536.0,95535.0,0.25476609]
[1763303583149,0.0002463,95536.0,95535.0,0.04541874]
[1763303583383,0.0002463,95536.0,95535.0,0.36841874]
[1763303586252,0.0002463,95536.0,95535.0,0.44379371]
[1763303586462,0.0002463,95536.0,95535.0,0.36841874]
[1763303587450,0.0002463,95536.0,95535.0,0.36741874]
[1763303587888,0.0002463,95536.0,95535.0,0.36841874]
[1763303588654,0.0002463,95536.0,95535.0,0.36741874]
[1763303589062,0.0002463,95536.0,95535.0,0.36841874]
[1763303589947,0.0002463,95536.0,95535.0,0.04541874]
[1763303590207,0.0002463,95536.0,95535.0,0.33002549]
[1763303590370,0.0002463,95536.0,95535.0,0.25476609]
[1763303590735,0.0002463,95536.0,95535.0,0.25376609]
[1763303590930,0.0002463,95536.0,95535.0,0.25476609]
[1763303591886,0.0002463,95536.0,95535.0,0.25376609]
[1763303592065,0.0002463,95536.0,95535.0,0.25476609]
[1763303594084,0.0002463,95536.0,95535.0,0.04541874]
[1763303598768,0.20933421,95541.0,95536.0,0.04341874]
[1763303598999,0.20933421,95541.0,95535.0,0.04541874]
[1763303599000,4.502e-05,95541.0,95540.0,0.04341874]
[1763303599215,0.20937923,95541.0,95540.0,0.06789874]
[1763303599638,0.20937923,95541.0,95540.0,0.04341874]
[1763303600280,0.20937923,95541.0,95540.0,0.04441874]
[1763303600478,0.20937923,95541.0,95540.0,0.001]
[1763303601531,0.20937923,95541.0,95540.0,0.002]
[1763303602038,0.20937923,95541.0,95533.0,0.01239]
[1763303602039,0.20934955,95534.0,95533.0,0.01239]
[1763303605456,0.20935612,95531.0,95530.0,0.01239]
[1763303607997,0.20934987,95535.0,95530.0,0.01239]
[1763303608204,0.20935415,95532.0,95530.0,0.01239]
[1763303608401,0.20934987,95535.0,95530.0,0.03687]
[1763303608605,4.502e-05,95541.0,95530.0,0.03687]
[1763303608807,4.502e-05,95541.0,95531.0,0.02448]
[1763303609044,0.20934725,95536.0,95531.0,0.02448]
[1763303609426,4.502e-05,95541.0,95531.0,0.02448]
[1763303609427,0.20935313,95533.0,95531.0,0.02448]
[1763303611139,0.2093364,95540.0,95531.0,0.02448]
[1763303611354,4.502e-05,95541.0,95531.0,0.02448]
[1763303611355,4.502e-05,95541.0,95540.0,0.02873]
[1763303611615,0.20937923,95541.0,95540.0,0.02873]
[1763303611821,0.20937923,95541.0,95540.0,0.05319]
[1763303613244,4.502e-05,95541.0,95540.0,0.02873]
[1763303613601,4.502e-05,95541.0,95540.0,0.01245]
[1763303613805,0.2093364,95540.0,95538.0,0.01245]
[1763303614431,0.2093364,95540.0,95539.0,0.02446]
[1763303620603,0.2093364,95540.0,95538.0,0.01245]
[1763303621147,0.2093364,95540.0,95538.0,0.03691]
[1763303622091,4.502e-05,95541.0,95538.0,0.01245]
[1763303622254,0.20938095,95541.0,95539.0,0.02446]
[1763303622450,4.502e-05,95541.0,95539.0,0.02446]
[1763303622692,4.502e-05,95541.0,95539.0,0.23379839]
[1763303622869,4.502e-05,95541.0,95540.0,0.02446]
[1763303625882,4.502e-05,95541.0,95540.0,0.2337964]
[1763303626282,4.502e-05,95541.0,95540.0,0.2093364]
[1763303628035,0.2093364,95540.0,95538.0,0.01245]
[1763303628432,0.2093364,95540.0,95538.0,0.03691]
[1763303631287,0.20938106,95541.0,95538.0,0.03691]
[1763303631709,4.502e-05,95541.0,95532.0,0.01226]
[1763303632035,4.502e-05,95541.0,95533.0,0.02446]
[1763303632236,4.502e-05,95541.0,95540.0,0.02784]
[1763303635484,4.502e-05,95541.0,95540.0,0.2215964]
[1763303638631,4.502e-05,95541.0,95540.0,0.26501514]
[1763303643481,4.502e-05,95541.0,95540.0,0.58801514]
[1763303645553,4.502e-05,95541.0,95540.0,0.58901514]
[1763303647877,4.502e-05,95541.0,95540.0,0.59320655]
[1763303653042,0.00024627,95545.0,95544.0,0.57574637]
[1763303653712,0.00024627,95545.0,95544.0,0.5799371]
[1763303654787,0.00024627,95545.0,95544.0,0.5809371]
[1763303654989,0.00024627,95545.0,95544.0,0.5819371]
[1763303655428,1e-08,95545.0,95544.0,0.6090171]
[1763303655640,0.0002,95560.0,95559.0,0.57571352]
[1763303655849,0.0002,95570.0,95569.0,0.57569162]
[1763303656062,0.00065039,95570.0,95569.0,0.60377162]
[1763303656267,0.00133429,95570.0,95569.0,0.59166168]
[1763303656696,0.00133429,95570.0,95569.0,0.67192846]
[1763303661136,0.00133429,95570.0,95569.0,0.59166168]
[1763303661337,0.00133429,95570.0,95569.0,0.26447162]
[1763303661537,0.00133429,95570.0,95569.0,0.05519874]
[1763303661787,0.00133429,95570.0,95569.0,0.26447162]
[1763303663295,0.00133429,95570.0,95569.0,0.05519874]
[1763303663531,0.00133429,95570.0,95569.0,0.01178]
[1763303664496,0.00133429,95570.0,95569.0,0.22105288]
[1763303664828,0.00133429,95570.0,95569.0,0.01178]
[1763303664979,0.21060498,95570.0,95569.0,0.01178]
[1763303672787,0.21060498,95570.0,95568.0,0.01178]
[1763303673096,0.20992108,95570.0,95568.0,0.01178]
[1763303673339,0.00065039,95570.0,95568.0,0.01178]
[1763303673554,0.20928164,95565.0,95564.0,0.01221]
[1763303675069,0.00065039,95570.0,95564.0,0.03706]
[1763303675501,0.00065039,95570.0,95565.0,0.02485]
[1763303675640,0.00065039,95570.0,95565.0,0.23413164]
[1763303675641,0.20992141,95570.0,95565.0,0.23413164]
[1763303676072,0.00065039,95570.0,95566.0,0.02485]
[1763303676301,0.00065039,95570.0,95566.0,0.23412733]
[1763303676693,0.00065039,95570.0,95567.0,0.02485]
[1763303676947,0.20992323,95570.0,95567.0,0.02485]
[1763303677351,0.00065039,95570.0,95567.0,0.02485]
[1763303677899,0.20927507,95568.0,95567.0,0.02485]
[1763303678497,0.00065655,95569.0,95567.0,0.02485]
[1763303678630,0.2099229,95570.0,95567.0,0.02485]
[1763303678840,0.20992126,95570.0,95567.0,0.02485]
[1763303679607,0.00065039,95570.0,95567.0,0.02485]
[1763303680351,0.20928164,95565.0,95564.0,0.01221]
[1763303683205,0.20928164,95565.0,95554.0,0.20930358]
[1763303683206,0.20929916,95557.0,95550.0,0.03706]
[1763303683642,0.00065039,95570.0,95551.0,0.01221]
[1763303683853,0.20931011,95552.0,95551.0,0.01221]
[1763303684035,0.20930219,95556.0,95551.0,0.01221]
[1763303684263,0.20930547,95555.0,95551.0,0.01221]
[1763303684469,0.20930834,95553.0,95551.0,0.01221]
[1763303685107,0.20929827,95558.0,95552.0,0.20931011]
[1763303685313,0.20930147,95556.0,95552.0,0.20931011]
[1763303685798,0.20930147,95556.0,95551.0,0.01221]
[1763303686452,0.20930546,95555.0,95551.0,0.01221]
[1763303686763,0.20930147,95556.0,95551.0,0.01221]
[1763303687233,0.20930588,95554.0,95551.0,0.01221]
[1763303687623,0.20930993,95553.0,95551.0,0.01221]
[1763303687921,0.20930588,95554.0,95551.0,0.01221]
[1763303688143,0.20930147,95556.0,95551.0,0.01221]
[1763303688344,0.20930658,95554.0,95551.0,0.01221]
[1763303689038,0.20930147,95556.0,95551.0,0.01221]
[1763303689473,0.00024623,95554.0,95551.0,0.01221]
[1763303691858,0.20930792,95553.0,95551.0,0.01221]
[1763303695513,0.00024623,95554.0,95552.0,0.02485]
[1763303698986,0.00024623,95554.0,95552.0,0.23415836]
[1763303699609,0.00024623,95554.0,95552.0,0.23415984]
[1763303701044,0.20955209,95554.0,95552.0,0.02485]
[1763303701386,0.20289622,95554.0,95552.0,0.02485]
[1763303701584,0.20930962,95553.0,95542.0,0.20933181]
[1763303701782,0.20932424,95546.0,95540.0,0.02256]
[1763303701980,0.01111392,95570.0,95539.0,0.04341874]
[1763303701981,0.02485,95560.0,95539.0,0.04341874]
[1763303702190,0.02485,95560.0,95535.0,0.22173644]
[1763303702191,0.09430749,95552.0,95535.0,0.22173644]
[1763303702392,0.09430749,95552.0,95535.0,0.01239]
[1763303702593,0.20933796,95540.0,95535.0,0.01239]
[1763303702830,0.20933859,95539.0,95535.0,0.01239]
[1763303703022,0.20933491,95541.0,95535.0,0.01239]
[1763303703230,0.20933491,95541.0,95535.0,0.22173547]
[1763303703670,0.20933806,95540.0,95535.0,0.01239]
[1763303704001,0.20933491,95541.0,95535.0,0.01239]
[1763303704210,0.20931449,95550.0,95539.0,0.23189682]
[1763303704448,0.20932311,95547.0,95540.0,0.2093364]
[1763303704873,0.20932311,95547.0,95540.0,0.2318964]
[1763303705230,0.20932511,95546.0,95540.0,0.2318964]
[1763303705427,0.20932311,95547.0,95541.0,0.02256]
[1763303705633,0.001,95550.0,95549.0,0.01239]
[1763303706060,0.23187407,95551.0,95549.0,0.01239]
[1763303706378,0.20932507,95546.0,95543.0,0.03495]
[1763303706601,0.20932763,95544.0,95543.0,0.01239]
[1763303707632,0.02256,95551.0,95526.0,0.01239]
[1763303707809,0.20934906,95535.0,95533.0,0.01239]
[1763303708766,0.02256,95551.0,95542.0,0.02897]
[1763303708949,0.20932752,95545.0,95542.0,0.02897]
[1763303709152,0.20932146,95547.0,95543.0,0.02256]
[1763303709352,0.20932633,95545.0,95543.0,0.02256]
[1763303710232,0.20931668,95549.0,95543.0,0.02256]
[1763303710589,0.20932132,95547.0,95543.0,0.02256]
[1763303711131,0.20931668,95549.0,95543.0,0.02256]
[1763303711380,0.2093215,95547.0,95543.0,0.02256]
[1763303711726,0.20932738,95545.0,95543.0,0.02256]
[1763303711913,0.001,95547.0,95543.0,0.02256]
[1763303712246,0.21032147,95547.0,95543.0,0.02256]
[1763303712629,0.001,95547.0,95543.0,0.02256]
[1763303712845,0.20932763,95544.0,95543.0,0.02256]
[1763303713062,0.20931996,95548.0,95543.0,0.02256]
[1763303713764,0.20931578,95550.0,95543.0,0.02256]
[1763303714000,0.20931578,95550.0,95543.0,0.23188794]
[1763303714200,0.20931578,95550.0,95543.0,0.02256]
[1763303714409,0.001,95545.0,95543.0,0.02256]
[1763303715060,0.20931578,95550.0,95543.0,0.02256]
[1763303715271,0.20931578,95550.0,95544.0,0.20932763]
[1763303715473,0.02256,95551.0,95544.0,0.20932752]
[1763303715649,0.02256,95551.0,95545.0,0.02276]
[1763303715797,0.001,95550.0,95545.0,0.02276]
[1763303716208,0.21031449,95550.0,95545.0,0.02276]
[1763303716517,0.03244345,95550.0,95549.0,0.20931668]
[1763303716741,0.001,95550.0,95549.0,0.20931668]
[1763303717139,0.03144039,95561.0,95553.0,0.20930602]
[1763303717375,0.09430749,95560.0,95553.0,0.20930602]
[1763303717529,0.09430749,95560.0,95554.0,0.01246]
[1763303717733,0.09430749,95560.0,95554.0,0.03522]
[1763303718158,0.20930179,95556.0,95554.0,0.01246]
[1763303718366,0.20930179,95556.0,95555.0,0.02276]
[1763303718602,0.20929805,95558.0,95555.0,0.02276]
[1763303718809,0.09430749,95560.0,95555.0,0.02276]
[1763303719131,0.30360105,95560.0,95555.0,0.02276]
[1763303719335,0.30460105,95560.0,95555.0,0.02276]
[1763303719718,0.20929708,95558.0,95555.0,0.02276]
[1763303719919,0.20929648,95559.0,95555.0,0.02276]
[1763303720153,0.30460105,95560.0,95555.0,0.02276]
[1763303720356,0.001,95560.0,95556.0,0.20930135]
[1763303720566,0.00024619,95563.0,95556.0,0.20930135]
[1763303720786,0.20953342,95563.0,95557.0,0.2217585]
[1763303721012,0.001,95560.0,95557.0,0.01246]
[1763303721440,0.20929251,95561.0,95557.0,0.01246]
[1763303722227,0.20929516,95559.0,95557.0,0.01246]
[1763303722472,0.20929251,95561.0,95557.0,0.01246]
[1763303722671,0.001,95561.0,95560.0,0.20929259]
[1763303722876,0.001,95561.0,95558.0,0.20929697]
[1763303723086,0.001,95561.0,95560.0,0.20929259]
[1763303723999,0.00106127,95561.0,95560.0,0.20929259]
[1763303724203,6.127e-05,95561.0,95560.0,0.20929259]
[1763303725452,0.00106127,95561.0,95560.0,0.20929259]
[1763303725931,0.00106127,95561.0,95560.0,0.25271133]
[1763303726106,0.00106127,95561.0,95560.0,0.04341874]
[1763303727313,6.127e-05,95561.0,95560.0,0.04341874]
[1763303727932,0.00106127,95561.0,95560.0,0.04341874]
[1763303728563,6.127e-05,95561.0,95560.0,0.04341874]
[1763303728780,0.00106127,95561.0,95560.0,0.04341874]
[1763303730282,6.127e-05,95561.0,95560.0,0.04341874]
[1763303730753,0.00106127,95561.0,95560.0,0.04341874]
[1763303733800,6.127e-05,95561.0,95560.0,0.04341874]
[1763303734057,0.00106127,95561.0,95560.0,0.04341874]
[1763303736503,0.00106127,95561.0,95560.0,0.25271133]
[1763303738457,0.00106127,95561.0,95560.0,0.04341874]
[1763303741257,0.00106127,95561.0,95557.0,0.01246]
[1763303741431,0.20929669,95559.0,95557.0,0.01246]
[1763303743308,0.20930321,95556.0,95554.0,0.01246]
[1763303743820,0.20929876,95558.0,95554.0,0.01246]
[1763303744216,0.20930105,95557.0,95554.0,0.01246]
[1763303744420,0.20929876,95558.0,95554.0,0.01246]
[1763303745583,0.20929876,95558.0,95554.0,0.22176418]
[1763303745808,6.127e-05,95561.0,95556.0,0.20930077]
[1763303745984,6.127e-05,95561.0,95558.0,0.20929655]
[1763303746209,6.127e-05,95561.0,95557.0,0.01188]
[1763303746210,0.20935334,95561.0,95557.0,0.01188]
[1763303746773,0.20929646,95559.0,95557.0,0.01188]
[1763303749363,0.001,95559.0,95557.0,0.22117716]
[1763303750335,0.001,95559.0,95558.0,0.02341]
[1763303750934,6.127e-05,95561.0,95558.0,0.02341]
[1763303751139,6.127e-05,95561.0,95559.0,0.20929478]
[1763303751337,6.127e-05,95561.0,95560.0,0.01188]
[1763303751537,6.127e-05,95561.0,95560.0,0.03529]
[1763303751966,6.127e-05,95561.0,95560.0,0.01188]
[1763303753575,0.00106127,95561.0,95560.0,0.01188]
[1763303754423,6.127e-05,95561.0,95560.0,0.01188]
[1763303756433,0.00106127,95561.0,95560.0,0.01188]
[1763303757079,6.127e-05,95561.0,95560.0,0.01188]
[1763303758957,6.127e-05,95561.0,95560.0,0.03280925]
[1763303760296,6.127e-05,95561.0,95560.0,0.07622799]
[1763303760506,6.127e-05,95561.0,95560.0,0.37829874]
[1763303760715,6.127e-05,95561.0,95560.0,0.38248939]
[1763303763797,6.127e-05,95561.0,95560.0,0.45931006]
[1763303765735,6.127e-05,95561.0,95560.0,0.38248939]
[1763303765941,6.127e-05,95561.0,95560.0,0.05948939]
[1763303766083,6.127e-05,95561.0,95560.0,0.05529874]
[1763303766490,6.127e-05,95561.0,95560.0,0.01188]
[1763303766919,0.20930354,95555.0,95550.0,4e-05]
[1763303767775,0.2093123,95551.0,95550.0,4e-05]
[1763303769002,0.20930354,95555.0,95550.0,4e-05]
[1763303769209,0.2093087,95553.0,95551.0,0.01215]
[1763303770247,0.2093087,95553.0,95550.0,4e-05]
[1763303772588,0.2103087,95553.0,95550.0,4e-05]
[1763303772716,0.001,95553.0,95551.0,0.01215]
[1763303772919,0.001,95553.0,95551.0,0.24486023]
[1763303773134,0.00024619,95563.0,95551.0,0.24486023]
[1763303773135,0.00024619,95563.0,95560.0,0.02725]
[1763303773364,0.20928891,95562.0,95560.0,0.02725]
[1763303773721,0.00024619,95563.0,95560.0,0.02725]
[1763303774143,0.00024619,95563.0,95560.0,0.23654259]
[1763303775005,0.00024619,95563.0,95560.0,0.22144259]
[1763303775449,0.00024619,95563.0,95560.0,0.01215]
[1763303776089,0.00106127,95561.0,95560.0,0.01215]
[1763303779555,6.127e-05,95561.0,95560.0,0.01215]
[1763303779762,6.127e-05,95561.0,95560.0,0.05556874]
[1763303779968,0.00106127,95561.0,95560.0,0.05556874]
[1763303780588,6.127e-05,95561.0,95560.0,0.05556874]
[1763303786026,6.127e-05,95561.0,95560.0,0.07649799]
[1763303786407,6.127e-05,95561.0,95560.0,0.05556874]
[1763303786619,6.127e-05,95561.0,95560.0,0.39949799]
[1763303786845,6.127e-05,95561.0,95560.0,0.37856874]
[1763303787204,6.127e-05,95561.0,95560.0,0.3827595]
[1763303787377,0.0463214,95585.0,95579.0,0.20925098]
[1763303787589,0.04677175,95585.0,95584.0,0.01227]
[1763303788045,0.00045035,95585.0,95584.0,0.01227]
[1763303789209,0.00145035,95585.0,95584.0,0.01227]
[1763303789629,0.00145035,95585.0,95584.0,0.01231]
[1763303800179,0.00145035,95585.0,95584.0,0.03642]
[1763303800385,0.00145035,95585.0,95584.0,0.01231]
[1763303800604,0.00205203,95585.0,95584.0,0.01231]
[1763303801531,0.00205203,95585.0,95584.0,0.03642]
[1763303801900,0.00205203,95585.0,95584.0,0.01231]
[1763303808126,0.00205203,95585.0,95584.0,0.03642]
[1763303808335,0.00205203,95585.0,95584.0,0.01231]
[1763303810672,0.00205203,95585.0,95584.0,0.03642]
[1763303811234,0.00205203,95585.0,95584.0,0.24566004]
[1763303811386,0.00205203,95585.0,95584.0,0.22155004]
[1763303811934,0.00205203,95585.0,95584.0,0.24566004]
[1763303812125,0.00205203,95585.0,95584.0,0.22155004]
[1763303813978,0.00205203,95585.0,95584.0,0.24566004]
[1763303814157,0.00205203,95585.0,95584.0,0.22155004]
[1763303814557,0.00205203,95585.0,95584.0,0.01231]
[1763303814761,0.00205203,95585.0,95584.0,0.24566004]
[1763303814905,0.00205203,95585.0,95584.0,0.22155004]
[1763303816903,0.00205203,95585.0,95584.0,0.24566004]
[1763303817230,0.00205203,95585.0,95584.0,0.22155004]
[1763303821475,0.00205203,95585.0,95584.0,0.26496878]
[1763303822432,0.00105203,95585.0,95584.0,0.26496878]
[1763303823048,0.00105203,95585.0,95584.0,0.05572874]
[1763303824155,0.00105203,95585.0,95584.0,0.26496878]
[1763303824559,0.00105203,95585.0,95584.0,0.05572874]
[1763303828630,0.21028988,95585.0,95584.0,0.05572874]
[1763303829002,0.00105203,95585.0,95584.0,0.05572874]
[1763303831166,0.00105203,95585.0,95584.0,4e-05]
[1763303832604,0.00205203,95585.0,95584.0,4e-05]
[1763303833106,0.00105203,95585.0,95584.0,4e-05]
[1763303833525,0.00205203,95585.0,95584.0,4e-05]
[1763303848697,0.00105203,95585.0,95584.0,0.04345874]
[1763303852476,0.00105203,95585.0,95584.0,0.06217626]
[1763303853921,0.00105203,95585.0,95584.0,0.06317626]
[1763303855087,0.00105203,95585.0,95584.0,0.04445874]
[1763303855313,0.00105203,95585.0,95584.0,0.06538274]
[1763303855512,0.00105203,95585.0,95584.0,0.04445874]
[1763303856623,0.00105203,95585.0,95584.0,0.06538274]
[1763303857021,1.393e-05,95585.0,95584.0,0.40392274]
[1763303857222,1.393e-05,95585.0,95584.0,0.36745874]
[1763303858628,1.393e-05,95585.0,95584.0,0.36845874]
[1763303860302,0.0002,95610.0,95607.0,0.20918912]
[1763303860502,0.00033507,95610.0,95609.0,0.27988406]
[1763303860718,0.00033507,95610.0,95609.0,0.26434406]
[1763303862395,0.00033507,95610.0,95609.0,0.05515874]
[1763303863005,0.00033507,95610.0,95609.0,0.26434406]
[1763303863208,0.00033507,95610.0,95609.0,0.05515874]
[1763303865279,0.00033507,95610.0,95609.0,0.01174]
[1763303865498,0.20919407,95605.0,95604.0,0.01174]
[1763303866483,0.00062877,95608.0,95604.0,0.01174]
[1763303866690,0.2091897,95607.0,95604.0,0.01174]
[1763303867324,0.00033507,95610.0,95605.0,0.02322]
[1763303867536,0.00033507,95610.0,95606.0,0.22900185]
[1763303867743,0.001,95608.0,95607.0,0.25260844]
[1763303867967,0.001,95608.0,95607.0,0.27582844]
[1763303868171,0.00033507,95610.0,95607.0,0.25260844]
[1763303868376,0.00033507,95610.0,95609.0,0.20918532]
[1763303871395,0.00033507,95610.0,95609.0,0.25260406]
[1763303879976,0.00033507,95610.0,95609.0,0.25264406]
[1763303880389,0.0010185,95610.0,95609.0,0.25264406]
[1763303881703,0.0010185,95610.0,95609.0,0.04345874]
[1763303882025,0.21020163,95610.0,95609.0,4e-05]
[1763303882789,0.20876167,95612.0,95609.0,4e-05]
[1763303883187,0.20918313,95610.0,95609.0,4e-05]
[1763303885899,0.53218313,95610.0,95609.0,4e-05]
[1763303886921,0.53318313,95610.0,95609.0,4e-05]
[1763303887755,0.62829474,95610.0,95609.0,4e-05]
[1763303887962,0.53318313,95610.0,95609.0,4e-05]
[1763303888192,0.55277168,95610.0,95609.0,4e-05]
[1763303888605,0.55177168,95610.0,95609.0,4e-05]
[1763303889852,0.55277168,95610.0,95609.0,4e-05]
[1763303890049,0.65644106,95610.0,95609.0,4e-05]
[1763303890255,0.65544106,95610.0,95609.0,4e-05]
[1763303890618,0.65644106,95610.0,95609.0,4e-05]
[1763303890817,0.55277168,95610.0,95609.0,4e-05]
[1763303891825,0.53318313,95610.0,95609.0,4e-05]
[1763303892026,0.53218313,95610.0,95609.0,4e-05]
[1763303892234,0.53318313,95610.0,95609.0,4e-05]
[1763303892819,0.53218313,95610.0,95609.0,4e-05]
[1763303893241,0.53318313,95610.0,95609.0,4e-05]
[1763303903102,0.55582313,95610.0,95609.0,4e-05]
[1763303904160,0.82128389,95610.0,95609.0,4e-05]
[1763303904405,0.82128482,95610.0,95609.0,4e-05]
[1763303904801,0.82128541,95610.0,95609.0,4e-05]
[1763303922972,0.61210228,95610.0,95572.0,0.01199951]
[1763303923177,0.20926412,95573.0,95572.0,0.03631458]
[1763303924472,0.20926412,95573.0,95572.0,0.03731458]
[1763303924694,0.20926021,95575.0,95572.0,0.01313458]
[1763303925061,0.2092506,95580.0,95573.0,0.02418]
[1763303925377,0.20925709,95577.0,95573.0,0.02418]
[1763303925973,0.2092594,95576.0,95573.0,0.02418]
[1763303926543,0.20926193,95574.0,95573.0,0.02418]
[1763303927199,0.20926193,95574.0,95573.0,0.02518]
[1763303927410,0.20926193,95574.0,95573.0,0.02618]
[1763303927607,0.20926193,95574.0,95573.0,0.02518]
[1763303927778,0.20926193,95574.0,95573.0,0.02418]
[1763303928018,0.20926193,95574.0,95573.0,0.02518]
[1763303928196,0.20926193,95574.0,95573.0,0.02618]
[1763303928409,0.323,95597.0,95573.0,0.02618]
[1763303928718,0.20923763,95586.0,95582.0,0.02805]
[1763303928921,0.20924204,95584.0,95582.0,0.02805]
[1763303929123,0.20923785,95585.0,95582.0,0.02805]
[1763303929341,0.53223116,95589.0,95582.0,0.02805]
[1763303929548,0.323,95589.0,95582.0,0.02805]
[1763303929780,0.20924222,95583.0,95582.0,0.02805]
[1763303930546,0.20924222,95583.0,95582.0,0.02905]
[1763303930741,0.20924222,95583.0,95582.0,0.02805]
[1763303931190,0.20924222,95583.0,95582.0,0.02905]
[1763303933354,0.20923562,95587.0,95582.0,0.02905]
[1763303933793,0.20924194,95584.0,95582.0,0.02905]
[1763303934245,0.20923961,95585.0,95582.0,0.02905]
[1763303934497,0.20923961,95585.0,95582.0,0.02805]
[1763303934701,0.20924194,95584.0,95582.0,0.02805]
[1763303934905,0.323,95591.0,95582.0,0.02805]
[1763303935108,0.20924218,95584.0,95582.0,0.02805]
[1763303935789,0.323,95591.0,95582.0,0.02805]
[1763303936204,0.01046025,95600.0,95590.0,0.02805]
[1763303936410,0.20921402,95596.0,95590.0,0.22124616]
[1763303936608,0.20921402,95596.0,95591.0,0.02418]
[1763303937671,0.20921126,95598.0,95591.0,0.23340275]
[1763303937872,0.20921126,95598.0,95592.0,0.20922066]
[1763303938083,0.53219806,95604.0,95594.0,0.20921671]
[1763303938288,0.20919806,95604.0,95601.0,0.01603]
[1763303939257,0.20920154,95602.0,95601.0,0.01603]
[1763303940913,0.20918862,95608.0,95601.0,0.01603]
[1763303941144,0.01065806,95620.0,95604.0,0.01202]
[1763303941361,0.09430749,95614.0,95604.0,0.01215507]
[1763303941571,0.29278826,95620.0,95604.0,0.01215507]
[1763303941572,0.20918936,95608.0,95604.0,0.01215507]
[1763303941780,0.20919404,95606.0,95604.0,0.00013507]
[1763303942839,0.20919404,95606.0,95604.0,0.00113507]
[1763303944294,0.20919404,95606.0,95604.0,0.00213507]
[1763303944509,0.20917248,95615.0,95605.0,0.02471]
[1763303944719,0.20941146,95619.0,95608.0,0.20918747]
[1763303944948,0.20916998,95617.0,95606.0,0.22126166]
[1763303945175,0.20941375,95619.0,95618.0,0.01207]
[1763303945617,0.20941375,95619.0,95618.0,0.02766]
[1763303945838,0.00024593,95619.0,95618.0,0.02766]
[1763303946494,0.00024593,95619.0,95618.0,0.05237]
[1763303947564,0.00024593,95619.0,95618.0,0.01307]
[1763303947785,0.00024593,95619.0,95618.0,0.01407]
[1763303949267,0.00024593,95619.0,95618.0,0.03878]
[1763303950488,0.00024593,95619.0,95618.0,0.01407]
[1763303950700,0.00024593,95619.0,95618.0,0.22323563]
[1763303950912,0.00024593,95619.0,95618.0,0.01407]
[1763303951131,0.00024593,95619.0,95618.0,0.03878]
[1763303951774,0.00024593,95619.0,95618.0,0.01407]
[1763303952473,0.00024593,95619.0,95618.0,0.03878]
[1763303952731,0.00024593,95619.0,95618.0,0.01407]
[1763303953142,0.00024593,95619.0,95618.0,0.03878]
[1763303953953,0.20940938,95619.0,95618.0,0.01407]
[1763303954161,0.00024593,95619.0,95618.0,0.03878]
[1763303955207,0.00024593,95619.0,95618.0,0.01407]
[1763303955950,0.00024593,95619.0,95618.0,0.22323563]
[1763303958853,0.00024593,95619.0,95618.0,0.01407]
[1763303961558,0.00024593,95619.0,95618.0,0.03498656]
[1763303963599,0.00024593,95619.0,95618.0,0.01407]
[1763303963808,0.00024593,95619.0,95618.0,0.03498656]
[1763303963960,0.00024593,95619.0,95618.0,0.05748874]
[1763303964822,0.00024593,95619.0,95618.0,0.0774053]
[1763303965232,0.00024593,95619.0,95618.0,0.0794053]
[1763303965434,0.00024593,95619.0,95618.0,0.0784053]
[1763303965800,0.00024593,95619.0,95618.0,0.0794053]
[1763303966221,0.00024593,95619.0,95618.0,0.0791653]
[1763303966418,0.00024593,95619.0,95618.0,0.0781653]
[1763303966883,0.00024593,95619.0,95618.0,0.0791653]
[1763303971497,0.00024593,95619.0,95618.0,0.05824874]
[1763303971905,0.00024593,95619.0,95618.0,0.01483]
[1763303972326,0.20940938,95619.0,95618.0,0.01483]
[1763303972529,0.00024593,95619.0,95618.0,0.01483]
[1763303973137,0.20940938,95619.0,95618.0,0.01483]
[1763303973697,0.00024593,95619.0,95618.0,0.22399563]
[1763303974047,0.00024593,95619.0,95618.0,0.01483]
[1763303978612,0.00024593,95619.0,95618.0,0.003]
[1763303978823,0.01985111,95619.0,95618.0,0.003]
[1763303979613,0.01985111,95619.0,95618.0,0.002]
[1763303980059,0.01985111,95619.0,95618.0,0.001]
[1763303980258,0.01985111,95619.0,95618.0,0.002]
[1763303980607,0.01985111,95619.0,95618.0,0.001]
[1763303981202,0.01985111,95619.0,95618.0,0.002]
[1763303981611,0.01985111,95619.0,95618.0,0.003]
[1763303982334,0.00024593,95619.0,95618.0,0.003]
[1763303983390,0.00024593,95619.0,95618.0,0.001]
[1763303983765,0.00024593,95619.0,95618.0,0.02391656]
[1763303984168,0.00024593,95619.0,95618.0,0.02291656]
[1763303984606,0.00024593,95619.0,95618.0,0.02391656]
[1763303986044,0.00024593,95619.0,95618.0,0.04857656]
[1763303986602,0.00024593,95619.0,95618.0,0.02391656]
[1763303988422,0.00024593,95619.0,95618.0,0.003]
[1763303990928,0.20940938,95619.0,95618.0,0.003]
[1763303992506,0.53240938,95619.0,95618.0,0.003]
[1763303993068,0.60972831,95619.0,95618.0,0.003]
[1763303993269,0.53240938,95619.0,95618.0,0.003]
[1763303993473,0.0002,95620.0,95618.0,0.001]
[1763303993672,0.2091897,95607.0,95606.0,0.01]
[1763303994870,0.2091897,95607.0,95606.0,0.012]
[1763303995081,0.2091897,95607.0,95606.0,0.014]
[1763303996446,0.20918704,95609.0,95606.0,0.014]
[1763303996579,0.2091897,95607.0,95606.0,0.014]
[1763303997191,0.2091897,95607.0,95606.0,0.012]
[1763303997606,0.2091897,95607.0,95606.0,0.014]
[1763303997792,0.2091897,95607.0,95606.0,0.012]
[1763303998193,0.2091897,95607.0,95606.0,0.014]
[1763303998397,0.20918704,95609.0,95606.0,0.014]
[1763303998703,0.2091897,95607.0,95606.0,0.014]
[1763303999770,0.2091897,95607.0,95606.0,0.012]
[1763304000101,0.20918704,95609.0,95606.0,0.012]
[1763304000804,0.20918704,95609.0,95606.0,0.014]
[1763304001105,0.20918937,95608.0,95606.0,0.01]
[1763304001293,0.20918937,95608.0,95606.0,0.012]
[1763304001495,0.20918937,95608.0,95606.0,0.014]
[1763304001744,0.223,95628.0,95607.0,0.03649]
[1763304001953,0.0002,95630.0,95629.0,0.25256031]
[1763304002178,0.0002,95630.0,95629.0,0.57556031]
[1763304002656,0.0002,95630.0,95629.0,0.60070748]
[1763304002861,0.0002,95630.0,95629.0,0.59652031]
[1763304003514,0.0002,95630.0,95629.0,0.57556031]
[1763304005468,0.0002,95640.0,95639.0,0.57553845]
[1763304005908,0.0002,95650.0,95649.0,0.57551658]
[1763304006342,0.0002,95650.0,95649.0,0.6535989]
[1763304006777,0.0002612,95650.0,95649.0,0.6535989]
[1763304007410,0.0002612,95650.0,95649.0,0.57551658]
[1763304009997,0.0002612,95650.0,95649.0,0.65486146]